bitfinex/quotes_ETHUSD_20251116
["timestamp","ask_amount","ask_price","bid_price","bid_amount"]
[1763257400102,0.1892,3150.1,3149.9,0.68377319]
[1763257400103,0.6647,3150.1,3149.9,0.68377319]
[1763257400431,0.6647,3150.1,3150.0,0.68377319]
[1763257400629,0.1892,3150.1,3150.0,0.68377319]
[1763257400832,0.6618,3150.1,3150.0,0.68377319]
[1763257401044,14.49355036,3150.1,3149.5,0.85462585]
[1763257401330,0.4726,3149.6,3149.3,0.85462585]
[1763257401834,0.4755,3149.5,3149.3,0.85462585]
[1763257402020,0.4726,3149.6,3149.2,0.85462585]
[1763257402220,3.83920239,3150.1,3149.4,0.85462585]
[1763257402422,1.6092408,3150.0,3149.4,0.85462585]
[1763257402625,1.6092408,3150.0,3149.3,0.85462585]
[1763257402831,0.4755,3149.9,3149.3,0.85462585]
[1763257403029,3.17480474,3149.8,3149.4,0.85462585]
[1763257403233,3.17480474,3149.8,3149.3,0.85462585]
[1763257403402,6.82510948,3149.8,3149.3,0.85462585]
[1763257403600,0.4755,3149.7,3149.3,0.85462585]
[1763257403938,0.4726,3149.4,3149.3,0.85462585]
[1763257404124,0.9481,3149.4,3149.3,0.85462585]
[1763257404441,0.9481,3149.4,3148.9,0.85462585]
[1763257404644,0.4755,3149.3,3148.9,0.85462585]
[1763257404798,0.4726,3149.0,3148.9,0.85462585]
[1763257405006,3.17571215,3148.9,3148.7,0.85462585]
[1763257405211,0.3323,3148.8,3148.7,0.85462585]
[1763257405410,0.8078,3148.8,3148.7,0.85462585]
[1763257405638,0.8078,3148.8,3148.6,0.85462585]
[1763257405827,0.4726,3148.5,3148.2,0.85462585]
[1763257406013,0.4755,3148.7,3147.9,0.85462585]
[1763257406014,0.3323,3148.3,3147.9,0.85462585]
[1763257406211,0.4712,3148.1,3147.7,0.85462585]
[1763257406457,0.1669,3147.8,3147.7,0.85462585]
[1763257406621,0.5437,3147.8,3147.7,0.85462585]
[1763257406824,0.5437,3147.8,3147.5,0.001]
[1763257406825,1.0192,3147.8,3147.5,0.001]
[1763257407142,0.4703,3147.6,3147.5,0.001]
[1763257407513,0.9458,3147.6,3147.5,0.001]
[1763257409218,4.12282376,3147.6,3147.5,0.001]
[1763257410255,0.9458,3147.6,3147.5,0.001]
[1763257410559,0.1669,3147.8,3147.5,0.001]
[1763257411243,3.34374321,3147.8,3147.5,0.001]
[1763257411448,0.1669,3147.8,3147.5,0.001]
[1763257412016,3.34373895,3147.8,3147.5,0.001]
[1763257412235,0.4726,3147.6,3147.5,0.001]
[1763257412623,0.9481,3147.6,3147.5,0.001]
[1763257412856,0.1669,3147.8,3147.5,0.001]
[1763257413286,3.3437235,3147.8,3147.5,0.001]
[1763257413584,0.1669,3147.8,3147.5,0.001]
[1763257413887,3.34372317,3147.8,3147.5,0.001]
[1763257414101,0.4726,3147.6,3147.5,0.001]
[1763257414296,0.1669,3147.8,3147.5,0.001]
[1763257414469,0.6537,3147.8,3147.5,0.001]
[1763257414658,3.83053197,3147.8,3147.5,0.001]
[1763257415455,0.4845,3147.6,3147.5,0.001]
[1763257415963,6.52056394,3147.8,3147.5,0.001]
[1763257416169,0.4845,3147.6,3147.5,0.001]
[1763257416593,0.9713,3147.6,3147.5,0.001]
[1763257417510,5.28206456,3147.6,3147.5,0.001]
[1763257418292,2.1050408,3147.6,3147.5,0.001]
[1763257418520,1.6182408,3147.6,3147.5,0.001]
[1763257419020,5.28206456,3147.6,3147.5,0.001]
[1763257421221,1.6182408,3147.6,3147.5,0.001]
[1763257421406,0.9713,3147.6,3147.5,0.001]
[1763257421610,1.1337408,3147.7,3147.5,0.001]
[1763257421813,3.17692964,3147.7,3147.5,0.001]
[1763257422126,0.9713,3147.6,3147.5,0.001]
[1763257422429,0.1669,3148.0,3147.5,0.001]
[1763257422599,6.55164454,3148.2,3147.6,0.4637]
[1763257422925,1.1337408,3148.1,3147.6,0.4637]
[1763257423639,3.17662007,3148.0,3147.5,0.001]
[1763257423839,0.6832,3147.6,3147.5,0.001]
[1763257424004,0.1987,3147.6,3147.5,0.001]
[1763257424210,0.1987,3147.8,3147.5,0.001]
[1763257424797,0.4845,3147.6,3147.5,0.001]
[1763257425243,0.9713,3147.6,3147.5,0.001]
[1763257425436,1.1337408,3148.0,3147.5,0.001]
[1763257425636,0.1987,3147.9,3147.5,0.001]
[1763257425804,3.1768219,3147.8,3147.5,0.001]
[1763257426500,0.4845,3147.6,3147.5,0.001]
[1763257427137,3.37550288,3147.9,3147.5,0.001]
[1763257427340,0.4868,3147.8,3147.5,0.001]
[1763257428035,3.66371839,3147.8,3147.5,0.001]
[1763257428246,0.1987,3147.9,3147.5,0.001]
[1763257428426,3.8622276,3147.9,3147.5,0.001]
[1763257429302,0.4845,3147.6,3147.5,0.001]
[1763257429746,0.9713,3147.6,3147.5,0.001]
[1763257430234,0.4845,3147.6,3147.5,0.001]
[1763257430622,3.17695575,3147.7,3147.5,0.001]
[1763257431153,6.3539295,3147.7,3147.5,0.001]
[1763257431313,0.9713,3147.6,3147.5,0.001]
[1763257431545,0.4845,3147.6,3147.5,0.001]
[1763257432283,6.35372525,3147.8,3147.5,0.001]
[1763257432437,6.84052525,3147.8,3147.5,0.001]
[1763257432871,0.1987,3147.9,3147.5,0.001]
[1763257432872,3.3754583,3147.9,3147.5,0.001]
[1763257433050,6.5522166,3147.9,3147.5,0.001]
[1763257433251,7.0390166,3147.9,3147.5,0.001]
[1763257433480,3.17671417,3148.0,3147.5,0.001]
[1763257433650,3.17671417,3148.0,3147.5,0.4581]
[1763257434054,0.1987,3147.9,3147.5,0.001]
[1763257434259,3.17702376,3147.6,3147.5,0.001]
[1763257434483,3.17696775,3147.7,3147.5,0.001]
[1763257435474,0.6855,3147.9,3147.5,0.001]
[1763257435770,3.17651917,3148.1,3147.5,0.85562585]
[1763257435972,6.83983834,3148.1,3147.5,0.85562585]
[1763257436273,3.17621402,3148.5,3148.0,0.4637]
[1763257436453,0.1987,3148.8,3148.1,0.1702]
[1763257437383,1.1337408,3148.6,3147.9,0.85462585]
[1763257437820,1.6205408,3148.6,3147.9,0.85462585]
[1763257438290,3.17611561,3148.5,3147.9,4.03131772]
[1763257438440,3.17609561,3148.6,3147.9,4.03131772]
[1763257438651,3.17609561,3148.6,3148.0,0.85462585]
[1763257438845,1.1337408,3148.5,3148.0,0.85462585]
[1763257439084,1.1337408,3148.5,3148.1,0.1702]
[1763257439458,0.1987,3148.8,3148.1,0.1702]
[1763257439459,3.17594478,3148.7,3148.1,0.1702]
[1763257439674,1.1337408,3148.6,3148.1,0.1702]
[1763257440057,4.30968558,3148.7,3148.1,0.1702]
[1763257440272,1.1337408,3148.6,3148.1,0.1702]
[1763257440460,4.30983172,3148.6,3148.1,0.1702]
[1763257440996,4.30983172,3148.6,3148.0,0.85462585]
[1763257440997,0.4868,3148.5,3148.0,0.85462585]
[1763257441494,0.4868,3148.5,3147.9,0.85462585]
[1763257442477,4.30979226,3148.6,3147.9,4.03129428]
[1763257442968,4.79659226,3148.6,3147.9,4.03129428]
[1763257443298,1.1337408,3148.6,3147.9,4.03129428]
[1763257443446,1.1337408,3148.6,3148.0,0.345818]
[1763257443880,0.1987,3149.3,3148.5,0.4637]
[1763257444059,0.1987,3149.3,3148.6,0.4637]
[1763257444249,0.199,3149.6,3148.7,1.26012985]
[1763257444550,1.1337408,3149.5,3148.8,3.175813]
[1763257444961,4.50777138,3149.6,3148.8,3.674913]
[1763257445166,0.199,3149.6,3148.8,6.850726]
[1763257445367,3.1748133,3149.8,3148.8,6.850726]
[1763257445550,1.1337408,3149.7,3148.7,1.26012985]
[1763257445875,1.5864408,3149.7,3148.7,1.26012985]
[1763257446071,0.4527,3149.6,3148.7,1.26012985]
[1763257446274,0.4527,3149.6,3148.8,0.85462585]
[1763257446478,3.17510715,3149.5,3148.7,7.61195757]
[1763257446976,1.1337408,3149.8,3148.7,8.71691758]
[1763257447187,3.37374606,3149.9,3148.9,0.405504]
[1763257447352,1.1337408,3149.8,3148.9,0.405504]
[1763257447660,1.1337408,3149.8,3148.8,0.405504]
[1763257448254,0.4527,3149.7,3148.8,0.405504]
[1763257448488,6.3500127,3149.6,3148.8,3.58123772]
[1763257448797,0.002,3150.0,3149.0,0.405504]
[1763257449087,0.002,3150.0,3149.9,1.037104]
[1763257449271,0.002,3150.0,3149.9,2.39082985]
[1763257449479,0.002,3150.0,3149.9,1.536204]
[1763257449982,0.002,3150.0,3149.9,8.13744721]
[1763257450189,0.002,3150.0,3149.9,8.21050058]
[1763257450415,0.002,3150.4,3150.0,1.5392448]
[1763257450599,0.002,3150.4,3150.2,0.866904]
[1763257451014,0.002,3150.4,3150.2,2.4997448]
[1763257451480,0.002,3150.4,3150.2,3.3490419]
[1763257451810,0.002,3150.4,3150.2,3.7870006]
[1763257452178,0.002,3150.4,3150.2,4.6362977]
[1763257452378,0.002,3150.4,3150.2,3.7870006]
[1763257452618,0.002,3150.4,3150.2,6.96140222]
[1763257453490,0.002,3150.4,3150.2,0.4614]
[1763257453799,0.002,3150.4,3149.7,0.4794]
[1763257454006,0.002,3150.4,3149.8,0.405504]
[1763257454515,0.002,3150.4,3150.2,0.4738]
[1763257454713,0.002,3150.4,3150.2,4.05370562]
[1763257454915,0.002,3150.4,3150.2,5.57337747]
[1763257455285,0.002,3150.4,3150.2,10.18625403]
[1763257455922,0.002,3150.4,3150.2,0.879304]
[1763257457113,0.002,3150.4,3149.4,5.46217366]
[1763257457316,0.002,3150.4,3149.5,4.30884795]
[1763257457527,0.002,3150.4,3149.5,7.4839551]
[1763257458035,0.002,3150.4,3149.6,0.405504]
[1763257458594,0.002,3150.4,3149.2,0.1702]
[1763257458595,0.4883,3150.3,3149.2,0.1702]
[1763257458908,0.002,3150.3,3149.4,0.405504]
[1763257459110,0.002,3150.3,3149.6,0.405504]
[1763257459924,0.002,3150.3,3149.3,1.1337408]
[1763257460092,0.002,3150.3,3149.4,0.405504]
[1763257461112,0.002,3150.3,3149.6,0.405504]
[1763257461425,0.002,3150.3,3149.7,0.03174905]
[1763257462505,0.002,3150.3,3149.8,0.03174804]
[1763257462704,0.002,3150.3,3149.9,0.405504]
[1763257462968,0.002,3150.3,3149.4,0.405504]
[1763257462969,0.4883,3150.3,3149.4,0.405504]
[1763257463130,3.66264537,3150.3,3149.6,0.405504]
[1763257464200,6.83699074,3150.3,3149.6,0.405504]
[1763257464527,0.002,3150.3,3149.6,0.405504]
[1763257464729,6.35060258,3150.3,3149.6,0.405504]
[1763257464933,0.4863,3150.2,3149.6,0.405504]
[1763257465120,3.66071809,3150.2,3149.6,3.58042413]
[1763257465425,6.83513618,3150.2,3149.2,0.1702]
[1763257465631,6.83513618,3150.2,3149.4,0.405504]
[1763257465836,0.002,3150.3,3149.4,0.405504]
[1763257465994,0.002,3150.3,3149.4,1.09813322]
[1763257465995,0.4863,3150.2,3149.4,1.09813322]
[1763257466195,0.4863,3150.2,3149.4,0.405504]
[1763257466730,0.4863,3150.2,3149.2,3.34553344]
[1763257466937,0.4863,3150.2,3149.0,5.15861577]
[1763257467138,3.17450239,3150.1,3149.0,8.33422707]
[1763257467427,3.17450239,3150.1,3149.1,0.2019551]
[1763257467628,3.17450239,3150.1,3149.2,0.405504]
[1763257467929,3.17450239,3150.1,3149.3,0.03275308]
[1763257468293,6.83692075,3150.3,3149.5,0.405504]
[1763257468496,0.4863,3150.2,3149.5,0.405504]
[1763257468897,0.4863,3150.2,3149.3,0.001]
[1763257469205,0.4863,3150.2,3149.4,0.405504]
[1763257469406,0.4863,3150.2,3149.3,0.001]
[1763257470031,0.4863,3150.2,3149.3,3.17629817]
[1763257470236,3.17450239,3150.1,3149.3,3.17629817]
[1763257470533,3.17450239,3150.1,3149.3,6.35160696]
[1763257471036,6.83530478,3150.1,3149.3,0.001]
[1763257471695,6.34900478,3150.1,3149.3,0.001]
[1763257471898,0.4863,3150.0,3149.3,0.001]
[1763257472320,3.36288514,3149.9,3149.3,0.8502971]
[1763257472736,0.1881,3149.9,3149.3,0.8502971]
[1763257473117,3.36280809,3149.9,3149.3,0.8502971]
[1763257473316,3.36280809,3149.9,3149.4,0.8492971]
[1763257473635,0.4863,3149.8,3149.3,0.8502971]
[1763257473832,0.4637,3149.4,3149.3,0.001]
[1763257474025,0.4637,3149.4,3148.9,0.001]
[1763257474223,3.4870113,3149.0,3148.9,0.001]
[1763257474646,3.9681113,3149.0,3148.9,0.001]
[1763257475359,0.7925,3149.0,3148.9,0.001]
[1763257475540,3.9681113,3149.0,3148.9,0.001]
[1763257476651,3.17546426,3149.2,3148.9,0.001]
[1763257476851,0.4811,3149.7,3148.9,0.001]
[1763257477052,0.4811,3149.7,3148.9,0.406504]
[1763257477351,1.6148408,3149.7,3148.9,0.406504]
[1763257477551,1.1337408,3149.7,3148.9,0.406504]
[1763257477752,0.4811,3149.6,3148.9,0.001]
[1763257478670,6.3502143,3149.5,3148.9,0.001]
[1763257479023,0.4811,3149.4,3148.9,0.001]
[1763257480143,0.4989,3149.0,3148.9,0.001]
[1763257480332,0.98,3149.0,3148.9,0.001]
[1763257480527,16.25345126,3149.0,3148.6,0.001]
[1763257480733,0.4649,3148.7,3148.6,0.001]
[1763257480930,0.946,3148.7,3148.6,0.001]
[1763257482023,0.946,3148.7,3148.3,0.001]
[1763257482229,1.1337408,3148.3,3148.0,0.001]
[1763257482561,1.1337408,3148.3,3147.5,0.001]
[1763257482562,0.3093,3148.1,3147.5,0.001]
[1763257482768,3.48582324,3148.1,3147.5,0.001]
[1763257483264,0.496,3147.6,3147.5,0.001]
[1763257483771,0.9771,3147.6,3147.5,0.001]
[1763257484569,4.15412376,3147.6,3147.5,0.001]
[1763257488054,3.67302376,3147.6,3147.5,0.001]
[1763257488885,0.4811,3147.9,3147.5,0.001]
[1763257489045,3.17702376,3147.6,3147.5,0.001]
[1763257489244,1.1337408,3147.7,3147.5,0.001]
[1763257489245,4.31070787,3147.7,3147.5,0.001]
[1763257490571,3.17687954,3147.8,3147.5,0.001]
[1763257490770,1.1337408,3147.7,3147.5,0.001]
[1763257491575,3.17692618,3147.7,3147.5,0.001]
[1763257492992,0.4989,3147.6,3147.5,0.001]
[1763257493292,0.98,3147.6,3147.5,0.001]
[1763257493643,4.15702376,3147.6,3147.5,0.001]
[1763257493839,0.4989,3147.6,3147.5,0.001]
[1763257494042,3.67592376,3147.6,3147.5,0.001]
[1763257495674,3.17702376,3147.6,3147.5,0.001]
[1763257495992,1.1337408,3147.7,3147.5,0.468]
[1763257496294,0.98,3147.6,3147.5,0.468]
[1763257496586,1.6326408,3147.6,3147.5,0.468]
[1763257496750,0.98,3147.6,3147.5,0.468]
[1763257497862,5.29076456,3147.6,3147.5,0.001]
[1763257498254,1.6326408,3147.6,3147.5,0.001]
[1763257498456,5.29076456,3147.6,3147.5,0.001]
[1763257500379,1.1337408,3147.5,3147.2,0.001]
[1763257500584,0.3083,3147.3,3147.2,0.001]
[1763257501110,0.7894,3147.3,3147.2,0.001]
[1763257501883,5.10046739,3147.3,3147.2,0.001]
[1763257502080,1.6307408,3147.2,3146.9,0.001]
[1763257502281,1.6307408,3147.2,3146.8,0.001]
[1763257502282,1.1337408,3146.9,3146.8,0.001]
[1763257502603,2.2177448,3146.9,3145.0,0.1712]
[1763257502779,1.1337408,3146.4,3145.1,0.33509151]
[1763257503188,0.4811,3146.3,3145.1,0.33509151]
[1763257503523,0.4811,3146.3,3145.0,0.1712]
[1763257503871,1.1337408,3146.1,3145.0,0.1712]
[1763257504080,0.4866,3146.0,3144.3,1.3048971]
[1763257504307,0.4866,3146.0,3144.3,0.4556]
[1763257504505,0.191,3145.9,3144.3,0.4556]
[1763257504670,0.191,3145.9,3144.4,0.405504]
[1763257504671,0.4866,3145.8,3144.4,0.405504]
[1763257505009,0.4866,3145.8,3144.5,0.7221805]
[1763257506092,1.1337408,3145.6,3144.6,3.18005469]
[1763257506606,6.35788536,3145.7,3144.6,3.18005469]
[1763257506783,6.84448536,3145.7,3144.6,3.18005469]
[1763257507380,0.191,3146.3,3145.6,0.6477]
[1763257507709,0.4866,3146.6,3145.7,0.405504]
[1763257507891,1.1337408,3146.6,3145.7,0.405504]
[1763257508100,1.1337408,3146.4,3145.6,0.1732]
[1763257508305,1.1337408,3146.4,3145.6,3.35223085]
[1763257508615,1.1337408,3146.4,3145.6,0.1732]
[1763257508778,1.1337408,3146.4,3145.4,0.405504]
[1763257509272,0.4866,3146.6,3145.6,0.405504]
[1763257509477,1.1337408,3146.8,3145.6,0.405504]
[1763257509673,0.4866,3147.4,3145.8,0.405504]
[1763257509878,7.95176,3147.9,3145.8,0.405504]
[1763257510078,1.1337408,3147.8,3146.2,0.405504]
[1763257510297,3.17692283,3147.7,3146.2,0.405504]
[1763257510494,6.35384566,3147.7,3146.4,0.405504]
[1763257510703,1.1337408,3147.6,3146.6,0.405504]
[1763257510917,0.191,3148.1,3146.6,0.405504]
[1763257511107,6.35353457,3147.9,3146.7,0.4989]
[1763257511287,1.1337408,3147.8,3146.7,0.4989]
[1763257511485,0.4886,3148.0,3146.7,0.4989]
[1763257511788,1.1337408,3147.9,3146.7,0.4989]
[1763257512355,1.1337408,3147.7,3146.9,0.405504]
[1763257512622,1.1337408,3147.7,3146.5,3.58363843]
[1763257512797,0.4866,3147.6,3146.7,0.405504]
[1763257513198,1.1337408,3147.7,3146.7,0.873704]
[1763257514303,1.1337408,3147.7,3146.9,0.405504]
[1763257514304,3.17702376,3147.6,3146.9,0.405504]
[1763257514829,0.002,3148.0,3147.1,0.405504]
[1763257515029,0.002,3148.0,3147.5,0.6379]
[1763257515203,1.1337408,3147.9,3147.5,0.6379]
[1763257516088,0.002,3148.0,3147.4,0.1722]
[1763257516458,0.002,3148.0,3147.9,0.871204]
[1763257516611,0.002,3148.0,3147.9,1.339404]
[1763257517192,0.002,3148.4,3148.0,0.405504]
[1763257517402,0.002,3148.4,3148.3,0.871204]
[1763257518027,0.002,3148.4,3148.3,1.339404]
[1763257518206,0.002,3148.4,3148.3,4.51572137]
[1763257518540,0.002,3148.4,3148.3,5.64946217]
[1763257518849,0.002,3148.4,3148.3,6.5320506]
[1763257519453,0.002,3148.7,3148.4,1.5392448]
[1763257519730,0.002,3148.7,3148.6,0.871204]
[1763257520105,0.002,3148.7,3148.6,1.339404]
[1763257520305,0.002,3148.7,3148.6,4.51541873]
[1763257520505,0.002,3148.7,3148.6,5.39794672]
[1763257520893,0.002,3148.7,3148.6,0.871204]
[1763257521099,0.002,3148.7,3148.6,0.405504]
[1763257521607,0.002,3148.7,3148.1,3.17649196]
[1763257521831,0.002,3148.7,3148.1,0.4682]
[1763257522014,0.002,3148.7,3148.2,0.405504]
[1763257522335,0.002,3148.7,3148.0,0.405504]
[1763257522534,0.002,3148.7,3147.8,0.4682]
[1763257522535,0.4838,3148.7,3147.6,1.1337408]
[1763257522711,0.4838,3148.7,3147.5,0.4682]
[1763257523034,0.4838,3148.7,3147.7,0.405504]
[1763257523728,0.002,3148.7,3147.7,0.4682]
[1763257524233,0.002,3148.7,3147.1,0.1702]
[1763257524234,1.1337408,3148.6,3147.1,0.1702]
[1763257524396,6.35223122,3148.5,3147.1,3.34767536]
[1763257524595,9.52834683,3148.5,3147.3,0.405504]
[1763257524895,0.4818,3148.4,3147.3,0.405504]
[1763257525319,0.4818,3148.4,3147.2,0.4682]
[1763257525493,1.6155408,3148.4,3147.1,0.1702]
[1763257525898,0.4818,3148.3,3146.8,0.4682]
[1763257526130,0.4818,3148.3,3146.9,1.1337408]
[1763257526333,6.35283654,3148.2,3147.0,3.17762948]
[1763257526530,6.35283654,3148.2,3147.1,0.575704]
[1763257526531,6.83463654,3148.2,3147.1,0.575704]
[1763257526839,0.4818,3148.1,3147.1,0.1702]
[1763257526997,0.4818,3148.1,3147.0,0.405504]
[1763257527633,6.35283654,3148.2,3147.2,0.405504]
[1763257528417,1.1337408,3148.2,3147.4,0.405504]
[1763257529825,1.1337408,3148.2,3147.3,0.405504]
[1763257530036,0.4818,3148.1,3147.1,0.1702]
[1763257530340,1.1337408,3147.9,3146.6,0.4682]
[1763257530544,1.1337408,3147.9,3146.7,0.16019408]
[1763257530728,0.6679,3147.8,3146.8,0.405504]
[1763257530926,0.6679,3147.8,3146.7,0.16019408]
[1763257531128,0.6679,3147.8,3146.8,0.405504]
[1763257531338,0.6679,3147.8,3146.8,0.873704]
[1763257531538,0.1861,3147.8,3146.8,1.93050384]
[1763257532412,6.35384566,3147.7,3147.0,0.405504]
[1763257532627,3.17692283,3147.7,3147.1,0.1702]
[1763257533030,0.4818,3148.2,3147.2,0.405504]
[1763257533228,1.1337408,3148.0,3147.2,0.405504]
[1763257533403,1.1337408,3148.0,3147.3,0.03177326]
[1763257533619,1.1337408,3148.0,3147.2,0.873704]
[1763257533620,3.17651917,3148.1,3147.4,0.405504]
[1763257533822,3.17651917,3148.1,3147.3,0.873704]
[1763257534024,6.35303834,3148.1,3147.3,0.873704]
[1763257534343,3.17614475,3148.5,3147.6,3.17702376]
[1763257534344,3.17611561,3148.5,3147.6,3.17702376]
[1763257534551,1.1337408,3148.4,3147.7,0.43727322]
[1763257534845,1.1337408,3148.4,3147.7,0.405504]
[1763257535244,1.1337408,3148.4,3147.4,3.6466525]
[1763257535245,1.1337408,3148.4,3147.5,0.405504]
[1763257535419,1.1337408,3148.4,3147.5,3.58261864]
[1763257536338,1.1337408,3148.4,3147.5,6.75974334]
[1763257536644,0.002,3148.7,3147.5,6.75974334]
[1763257536645,0.002,3148.7,3147.7,0.405504]
[1763257536846,6.35204677,3148.6,3147.7,0.405504]
[1763257537414,6.82714677,3148.6,3147.7,0.405504]
[1763257537844,0.4751,3148.5,3147.1,1.02172363]
[1763257538033,0.1965,3147.8,3147.1,1.02172363]
[1763257538212,0.1965,3147.8,3147.6,0.001]
[1763257538421,3.17692283,3147.7,3147.6,0.001]
[1763257538615,3.65662283,3147.7,3147.6,0.001]
[1763257538830,4.13172283,3147.7,3147.6,0.001]
[1763257539640,0.9548,3147.7,3147.6,0.001]
[1763257540437,0.4797,3147.7,3147.6,0.001]
[1763257540617,3.65662283,3147.7,3147.6,0.001]
[1763257540818,4.13172283,3147.7,3147.6,0.001]
[1763257541539,5.26546363,3147.7,3147.6,0.001]
[1763257541942,10.04050265,3147.7,3147.6,0.001]
[1763257542116,13.39050265,3147.7,3147.6,0.001]
[1763257542934,10.04050265,3147.7,3147.6,0.001]
[1763257544966,9.88278132,3147.7,3147.6,0.001]
[1763257545165,5.26546363,3147.7,3147.6,0.001]
[1763257545670,9.88278132,3147.7,3147.6,0.001]
[1763257546969,1.1337408,3147.6,3147.3,0.001]
[1763257547156,0.3189,3147.4,3147.3,0.001]
[1763257547558,0.794,3147.4,3147.3,0.001]
[1763257547776,0.794,3147.4,3147.0,0.001]
[1763257548063,17.32500901,3147.7,3147.0,0.001]
[1763257548064,6.22915849,3147.1,3147.0,0.001]
[1763257548869,9.881787,3147.1,3147.0,0.001]
[1763257549345,5.26446931,3147.1,3147.0,0.001]
[1763257552087,9.881787,3147.1,3147.0,0.001]
[1763257552287,9.881787,3147.1,3145.1,0.1732]
[1763257552288,1.1337408,3147.0,3145.1,0.1732]
[1763257552460,1.1337408,3146.3,3145.2,0.405504]
[1763257552806,1.1337408,3146.3,3145.1,0.1732]
[1763257553104,4.61731769,3146.0,3144.5,0.85252363]
[1763257553310,1.1337408,3145.7,3144.6,0.4695]
[1763257553607,1.6088408,3145.7,3144.6,0.4695]
[1763257553989,1.6088408,3145.7,3144.6,3.64953107]
[1763257554294,1.6088408,3145.7,3144.6,4.41774319]
[1763257554672,1.6088408,3145.7,3144.6,3.64953107]
[1763257554868,1.1337408,3145.7,3144.6,6.36008576]
[1763257555197,3.17884163,3145.8,3145.6,0.6702]
[1763257555360,1.1337408,3145.9,3145.7,0.497]
[1763257555560,3.17823544,3146.4,3146.0,0.497]
[1763257555799,9.53349432,3146.8,3146.0,0.497]
[1763257555993,1.1337408,3146.7,3146.0,0.497]
[1763257556167,1.1337408,3146.7,3146.6,0.001]
[1763257556781,2.0885408,3146.7,3146.6,0.001]
[1763257557265,5.26647323,3146.7,3146.6,0.001]
[1763257559667,4.79137323,3146.7,3146.6,0.001]
[1763257559895,5.26647323,3146.7,3146.6,0.001]
[1763257560914,0.405504,3146.6,3146.3,0.001]
[1763257561197,0.405504,3146.6,3144.5,0.4705]
[1763257561198,1.1337408,3145.5,3144.5,0.4705]
[1763257561501,1.1337408,3145.5,3144.5,0.001]
[1763257561704,1.1337408,3145.3,3144.5,0.001]
[1763257563239,5.09241769,3145.2,3144.5,0.001]
[1763257563571,0.4751,3145.1,3144.5,0.001]
[1763257563902,0.4797,3144.6,3144.5,0.001]
[1763257564266,0.9516,3144.6,3144.5,0.001]
[1763257565014,0.9516,3144.6,3144.2,0.001]
[1763257565015,0.405504,3144.5,3144.2,0.001]
[1763257565224,1.1337408,3144.7,3143.9,0.001]
[1763257565225,1.1337408,3144.2,3143.9,0.001]
[1763257565426,0.4775,3144.0,3143.9,0.001]
[1763257565918,5.66930637,3144.0,3143.9,0.001]
[1763257566085,1.1337408,3143.2,3142.6,0.001]
[1763257566268,0.1834,3142.7,3142.6,0.001]
[1763257566664,0.6829,3142.7,3142.6,0.001]
[1763257566865,1.1548,3142.7,3142.6,0.001]
[1763257567296,1.1548,3142.7,3142.4,0.001]
[1763257567539,6.04695849,3142.5,3142.4,0.001]
[1763257567719,6.04695849,3142.5,3140.6,0.4717]
[1763257567720,1.5392448,3142.4,3140.6,0.4717]
[1763257567922,5.28442185,3142.4,3140.6,0.4717]
[1763257568122,5.28442185,3142.4,3141.1,0.4717]
[1763257568325,5.28442185,3142.4,3140.6,0.4717]
[1763257568644,5.68992585,3142.4,3140.6,0.4717]
[1763257568811,5.68992585,3142.4,3140.7,3.18397549]
[1763257569010,5.68992585,3142.4,3140.7,3.18397427]
[1763257569247,4.81252185,3142.4,3141.2,0.4717]
[1763257569417,5.28442185,3142.4,3141.2,0.4717]
[1763257569601,4.81252185,3142.4,3141.2,0.4717]
[1763257570022,5.28442185,3142.4,3141.2,0.4717]
[1763257570413,9.90173954,3142.4,3140.9,0.1702]
[1763257570611,9.90173954,3142.4,3141.0,3.18363471]
[1763257571240,9.90173954,3142.4,3140.9,0.1702]
[1763257571539,0.405504,3142.3,3140.9,0.1702]
[1763257571838,1.1337408,3141.4,3140.5,0.4717]
[1763257572132,1.1337408,3141.2,3140.5,3.65590566]
[1763257572534,1.1337408,3141.2,3140.3,3.18440327]
[1763257572535,1.1337408,3141.2,3139.9,0.6469]
[1763257572922,1.1337408,3141.2,3139.9,3.83170714]
[1763257573128,1.1337408,3141.2,3140.0,0.84607071]
[1763257573529,1.1337408,3141.2,3140.0,0.38317071]
[1763257573727,1.1337408,3141.7,3141.1,0.6666]
[1763257573928,1.1337408,3141.5,3140.1,0.868404]
[1763257574238,1.1337408,3141.5,3140.2,0.4629]
[1763257574642,1.1337408,3141.5,3140.2,1.14613267]
[1763257575018,1.1337408,3141.5,3140.3,0.4629]
[1763257575217,6.36577985,3141.8,3140.4,0.43734707]
[1763257575431,6.36577985,3141.8,3141.6,0.001]
[1763257575631,5.50682169,3141.7,3141.6,0.001]
[1763257575943,1.5392448,3141.4,3139.1,0.4629]
[1763257576244,1.1337408,3140.4,3139.1,0.4629]
[1763257576743,0.6728,3140.3,3138.9,0.1712]
[1763257576920,0.6728,3140.3,3139.0,0.4629]
[1763257577119,12.73277096,3141.5,3139.1,0.78749628]
[1763257577120,0.1888,3140.6,3139.1,0.78749628]
[1763257577439,0.405504,3141.4,3139.1,0.78749628]
[1763257577440,1.1337408,3141.0,3139.1,0.78749628]
[1763257577644,0.1888,3140.9,3139.2,0.4629]
[1763257577841,0.6728,3140.9,3139.2,0.4629]
[1763257578046,4.61731769,3140.7,3139.2,0.4629]
[1763257578279,1.1337408,3140.6,3139.0,3.18565549]
[1763257578439,1.1337408,3140.2,3138.9,0.1712]
[1763257578620,1.1337408,3140.2,3139.0,0.4629]
[1763257579438,1.1337408,3140.2,3137.8,1.1337408]
[1763257579439,0.5125,3138.2,3137.8,1.1337408]